Cogmind - Beta 15 @@@ ROGUE MODE // 2025.07.19 @ 14:17:20 Player: beans Result: Destroyed by L-31 Rogue with Katana Performance ------------- Evolutions (1) 500 Regions Visited (4) 800 Robots Destroyed (39) 195 Value Destroyed (872) 872 Prototype IDs (5) 100 Alien Tech Used (0) 0 Bonus (0) 0 TOTAL SCORE: 2467 Bonus ------- None Cogmind --------- Core Integrity 0/400 Matter 98/300 Energy 79/100 System Corruption 1% Temperature Cool (32) Movement Core (100) Ox1 Location -9/Storage Parts ------- > --- POWER (1) -------- (None) > --- PROPULSION (2) --- (None) > --- UTILITY (3) ------ (None) > --- WEAPON (3) ------- Small Laser Improved Assault Rifle > --- INVENTORY (5) ---- Light Treads Peak State ------------ > --- POWER ------------ Heavy Ion Engine > --- PROPULSION ------- (None) > --- UTILITY ---------- (None) > --- WEAPON ----------- Improved EM Shotgun Improved EM Shotgun Advanced Beam Cannon > --- INVENTORY -------- Small Laser Improved Light Cannon Grenade Launcher [Rating: 12] Favorites ----------- Power Light Ion Engine Engine Light Ion Engine Propulsion Light Treads Treads Light Treads Utility None Weapon Grenade Launcher Energy Gun EM Pulse Gun Energy Cannon Advanced Beam Cannon Ballistic Gun Improved Assault Rifle Ballistic Cannon Improved Light Cannon Launcher Grenade Launcher Build | -11 -10 -10 -9 -9 ------- Run | Yrd Mat Min Mat Sto Slots Evolved 2 | . . . 2 . Power . | . . . . . Propulsion . | . . . . . Utility 1 | . . . 1 . Weapon 1 | . . . 1 . Parts Attached 19 | 5 3 . 6 5 Power 2 | 1 . . . 1 Engine 2 | 1 . . . 1 Core . | . . . . . Reactor . | . . . . . Propulsion 2 | 2 . . . . Treads 2 | 2 . . . . Leg . | . . . . . Wheel . | . . . . . Hover . | . . . . . Flight . | . . . . . Utility . | . . . . . Device . | . . . . . Storage . | . . . . . Processor . | . . . . . Hackware . | . . . . . Protection . | . . . . . Artifact . | . . . . . Weapon 15 | 2 3 . 6 4 Energy Gun 6 | 2 1 . 3 . Energy Cannon 2 | . . . . 2 Ballistic Gun 1 | . . . . 1 Ballistic Cannon 2 | . . . 2 . Launcher 4 | . 2 . 1 1 Special Weapon . | . . . . . Impact Weapon . | . . . . . Slashing Weapon . | . . . . . Piercing Weapon . | . . . . . Special Melee Weapon . | . . . . . Unidentified Prototypes 4 | . 1 . . 3 Parts Lost 13 | . . . 8 5 Power 2 | . . . 1 1 Propulsion 2 | . . . 2 . Utility . | . . . . . Weapon 9 | . . . 5 4 Highest Loss Streak 4 | . . . 4 3 To Critical Strikes . | . . . . . Average Backups 3 | 1 3 4 3 3 Power . | . . . . . Propulsion . | . . . . . Utility . | . . . . . Weapon 3 | . 3 4 3 3 Tool/Special . | . . . . . Unused Backups 3 | . . . 2 1 Power . | . . . . . Propulsion . | . . . . . Utility . | . . . . . Weapon 3 | . . . 2 1 Tool/Special . | . . . . . Average Slot Usage (%) 55 | . 71 71 45 31 Engine 10 | . 14 14 8 7 Treads 17 | . 28 28 10 . Energy Gun 8 | . 9 . 7 17 Ballistic Cannon 3 | . . . 10 . Launcher 14 | . 18 28 8 . Peak Build Rating 12 | 5 7 5 9 12 Average Rating 5 | 2 5 5 5 8 On Entrance 4 | . 5 5 5 8 Naked Turns . | . . . . . Heaviest Build 18 | 6 9 9 14 18 Greatest Support 40 | 40 40 40 40 3 Greatest Overweight (x) 5 | . . . 2 5 Average Overweight (x) . | . . . . 3 Largest Inventory Capacity 5 | 5 5 5 5 5 Average Capacity 5 | 5 5 5 5 5 Most Carried 5 | 5 5 4 5 5 Average Carried 3 | 1 3 4 3 3 Final Capacity 5 | 5 5 5 5 5 Final Carried 4 | . 4 4 3 1 Class Distribution -------------------- 81% | Mutant 18% | Bomber Dominant Class ---------------- Mutant | -10/Materials Mutant | -10/Mines Mutant | -9/Materials Mutant | -9/Storage Resources | -11 -10 -10 -9 -9 ----------- Run | Yrd Mat Min Mat Sto Matter Collected 785 | 211 212 . 252 110 Remotely . | . . . . . Salvage Created 915 | . 332 . 357 226 Parts 66 | . 18 . 36 12 Haulers Intercepted 4 | . 2 . 2 . Recyclers Shooed 2 | . 1 . 1 . Parts Field Recycled . | . . . . . Retrieved Matter . | . . . . . Parts Self-Destructed . | . . . . . Prevented . | . . . . . Kills | -11 -10 -10 -9 -9 ------- Run | Yrd Mat Min Mat Sto Combat Hostiles Destroyed 20 | . 3 . 13 4 Guns 2 | . 1 . . 1 Cannons 7 | . . . 5 2 AOE 10 | . 2 . 8 . Classes Destroyed 10 | . 7 . 3 . Worker 6 | . 4 . 2 . Builder 2 | . 1 . 1 . Tunneler 1 | . 1 . . . Hauler 4 | . 2 . 2 . Recycler 1 | . 1 . . . Operator 1 | . . . 1 . Watcher 4 | . 1 . 3 . Swarmer 8 | . . . 8 . Grunt 5 | . 3 . 2 . Sentry 7 | . . . 3 4 Best Kill Streak 9 | . 6 . 9 2 Combat Bots Only 6 | . 3 . 6 2 Max Kills in Single Turn 4 | . 2 . 4 1 Gunslinging . | . . . . . Exploded 2 | . 1 . 2 . Melee . | . . . . . Uniques/NPCs Destroyed . | . . . . . Combat | -11 -10 -10 -9 -9 -------- Run | Yrd Mat Min Mat Sto Hostile Shots Fired 133 | . 8 . 75 50 Missed 25 | . 4 . 12 9 Hits 108 | . 4 . 63 41 Melee 3 | . . . . 3 Projectile 105 | . 4 . 63 38 Critical Strikes 5 | . . . 1 4 Part Disruptions 1 | . . . 1 . Damage Taken 1786 | . 139 . 879 768 Core 453 | . 41 . 117 295 Absorbed by Shields . | . . . . . Core Remaining (%) 91 | 100 . 83 . . Volleys Fired 82 | . 23 . 34 25 Largest 3 | . 2 . 3 2 Hottest 146 | . 70 . 146 108 Shots Fired 138 | . 42 . 61 35 Gun 46 | . 19 . 13 14 Cannon 46 | . . . 27 19 Launcher 46 | . 23 . 21 2 Special . | . . . . . Kinetic 29 | . . . 27 2 Thermal 25 | . . . 7 18 Explosive 46 | . 23 . 21 2 Electromagnetic 38 | . 19 . 6 13 Robot Hit Streak 12 | . 6 . 9 12 Robot Miss Streak 4 | . 1 . 4 2 Penetration Max . | . . . . . Secondary Targets 1 | . . . . 1 Max Gunslinging Chain 1 | . . . . 1 Shots Hit Robots 74 | . 20 . 27 27 Core Hits 68 | . 23 . 32 13 Critical Kills . | . . . . . Critical Parts Destroyed . | . . . . . Critical Strikes 1 | . . . 1 . Blast 1 | . . . 1 . Melee Attacks . | . . . . . Impact . | . . . . . Slashing . | . . . . . Piercing . | . . . . . Sneak Attacks . | . . . . . Combat Hostiles . | . . . . . Follow-up Attacks . | . . . . . Damage Inflicted 2820 | . 864 . 1347 609 Guns 400 | . 131 . 81 188 Cannons 575 | . . . 290 285 Explosions 1842 | . 733 . 973 136 Melee . | . . . . . Ramming 3 | . . . 3 . Kinetic 329 | . . . 290 39 Thermal 570 | . . . 324 246 Explosive 1494 | . 680 . 678 136 Electromagnetic 424 | . 184 . 52 188 Impact . | . . . . . Slashing . | . . . . . Piercing . | . . . . . Highest Corruption 1 | . . . 1 1 Average Corruption 1 | . . . 1 1 Corruption Purged . | . . . . . Corruption Blocked . | . . . . . Effects 1 | . . . . 1 Energy Discharges 1 | . . . . 1 Overload Shots . | . . . . . Overflow Damage 54 | . 1 . 53 . Projectiles . | . . . . . Explosions 54 | . 1 . 53 . Melee . | . . . . . Knockbacks . | . . . . . Impact . | . . . . . Kinetic . | . . . . . Secondary . | . . . . . Self-Inflicted Damage 334 | . 93 . 201 40 Shots 15 | . 7 . 7 1 Rammed 1 | . . . 1 . Targets Rammed 1 | . . . 1 . Kicked . | . . . . . Crushed . | . . . . . Highest Temperature 310 | . 51 . 72 310 Average Temperature 66 | . 21 . 12 128 Received Heat Transfer 441 | . 24 . 192 225 Effects 3 | . . . . 3 Energy Bleed 1 | . . . . 1 Interference 2 | . . . . 2 Siege Activations . | . . . . . Martial Activations . | . . . . . Shielding Activations . | . . . . . Robots Disrupted . | . . . . . Combat Hostiles . | . . . . . Robots Corrupted 1 | . . . . 1 Combat Hostiles 1 | . . . . 1 Parts Fried 3 | . . . . 3 Impact Corruptions . | . . . . . Robots Melted . | . . . . . Combat Hostiles . | . . . . . Parts Melted 3 | . . . . 3 Heat Transferred 883 | . . . 448 435 Parts Sabotaged . | . . . . . Parts Stolen . | . . . . . Parts Stripped . | . . . . . Power Chain Reactions 1 | . . . 1 . Alert | -11 -10 -10 -9 -9 ------- Run | Yrd Mat Min Mat Sto Maximum Alert Level 1 | . . . 1 1 Low Security (%) 76 | 100 100 100 41 72 Level 1 23 | . . . 58 27 Level 2 . | . . . . . Level 3 . | . . . . . Level 4 . | . . . . . Level 5 . | . . . . . High Security . | . . . . . Max Security . | . . . . . Peak Influence 313 | . 171 38 313 287 Initial 131 | . . 38 . 131 Average 112 | . 78 6 192 153 Influence Increases 1174 | . 271 . 609 294 Destroy 0b10 Robot/C 400 | . 60 . 260 80 Destroy 0b10 Robot/NC 95 | . 50 . 45 . Destroy Leader 136 | . 16 . 80 40 Successful Hack 5 | . . . 5 . Disable Machine 135 | . 30 . 90 15 Anti-Garrison Action 150 | . . . . 150 Destroy Structure 223 | . 115 . 99 9 Lose Combat Pursuer 30 | . . . 30 . Influence Decreases 909 | . 172 99 296 342 Entered New Map 243 | . . 61 . 182 Time Decay 536 | . 172 38 216 110 Lost Part 130 | . . . 80 50 Squads Dispatched 8 | . 1 . 3 4 Investigation 1 | . 1 . . . Extermination . | . . . . . Reinforcement 3 | . . . 3 . Assault 2 | . . . . 2 Garrison 2 | . . . . 2 Intercept . | . . . . . Searches Triggered . | . . . . . Construction Impeded 1 | . . . 1 . Haulers Reinforced . | . . . . . Active Scanning Responses . | . . . . . Cargo Convoy Interrupts . | . . . . . Stealth | -11 -10 -10 -9 -9 --------- Run | Yrd Mat Min Mat Sto Distress Signals 2 | . . . 2 . Communications Jammed . | . . . . . Distress Signals . | . . . . . Times Spotted 38 | . 5 . 19 14 Peak Tracking Total 8 | . 3 . 7 8 Tactical Retreats 2 | . . . 2 . Traps | -11 -10 -10 -9 -9 ------- Run | Yrd Mat Min Mat Sto Traps Triggered 2 | . 1 . . 1 Indirectly . | . . . . . Trap Hack Attempts . | . . . . . Triggered . | . . . . . Disarmed . | . . . . . Reprogrammed . | . . . . . Reused . | . . . . . Traps Extracted . | . . . . . Installed . | . . . . . Triggered . | . . . . . Machines | -11 -10 -10 -9 -9 ---------- Run | Yrd Mat Min Mat Sto Machines Disabled 13 | . 5 . 6 2 Max in Single Turn 3 | . 3 . 2 1 Garrison Access 1 | . . . . 1 Machines Repaired . | . . . . . Machines Dismantled . | . . . . . Machines Sabotaged . | . . . . . Overloaded Fab Kills . | . . . . . Hacking | -11 -10 -10 -9 -9 --------- Run | Yrd Mat Min Mat Sto Machines Accessed 1 | . . . 1 . Terminals 1 | . . . 1 . Fabricators . | . . . . . Repair Stations . | . . . . . Recycling Units . | . . . . . Scanalyzers . | . . . . . Garrison Access . | . . . . . Total Hacks 2 | . . . 2 . Successful 1 | . . . 1 . Failed 1 | . . . 1 . Catastrophic . | . . . . . Database Lockouts . | . . . . . Manual . | . . . . . Terminals 2 | . . . 2 . Fabricators . | . . . . . Repair Stations . | . . . . . Recycling Units . | . . . . . Scanalyzers . | . . . . . Garrison Access . | . . . . . Terminal Hacks 1 | . . . 1 . Prototype ID Bank 1 | . . . 1 . Fabricator Hacks . | . . . . . Repair Station Hacks . | . . . . . Recycling Unit Hacks . | . . . . . Scanalyzer . | . . . . . Garrison Access Hacks . | . . . . . Unauthorized Hacks . | . . . . . Terminals . | . . . . . Fabricators . | . . . . . Repair Stations . | . . . . . Recycling Units . | . . . . . Scanalyzers . | . . . . . Garrison Access . | . . . . . Data Cores Recovered . | . . . . . Used . | . . . . . Hacking Detections . | . . . . . Full Trace Events . | . . . . . Feedback Events . | . . . . . Feedback Blocked . | . . . . . Robot Schematics Acquired . | . . . . . Robots Built . | . . . . . Authchips . | . . . . . Time . | . . . . . Total Robot Build Rating . | . . . . . Part Schematics Acquired . | . . . . . Parts Built . | . . . . . Authchips . | . . . . . Time . | . . . . . Total Part Build Rating . | . . . . . Parts Repaired . | . . . . . Time . | . . . . . Parts Recycled . | . . . . . Recycled Matter . | . . . . . Retrieved Matter . | . . . . . Retrieved Components . | . . . . . Parts Scanalyzed . | . . . . . Part Schematics Acquired . | . . . . . Parts Damaged . | . . . . . Bothacking | -11 -10 -10 -9 -9 ------------ Run | Yrd Mat Min Mat Sto Used RIF Installer . | . . . . . Robots Hacked . | . . . . . Non-combat . | . . . . . Combat . | . . . . . Robot Hacks Applied . | . . . . . Relay Couplers Released 2 | . . . . 2 Machine Destruction 2 | . . . . 2 Fabnet Peak Effective % . | . . . . . Robots Rewired . | . . . . . Allies Hacked . | . . . . . Hacks Repelled . | . . . . . Allies | -11 -10 -10 -9 -9 -------- Run | Yrd Mat Min Mat Sto Total Allies . | . . . . . Largest Group . | . . . . . Highest-Rated Group . | . . . . . Highest-Rated Ally . | . . . . . Total Orders . | . . . . . Ally Attacks . | . . . . . Total Damage . | . . . . . Kills . | . . . . . Allies Corrupted . | . . . . . Allies Melted . | . . . . . Intel | -11 -10 -10 -9 -9 ------- Run | Yrd Mat Min Mat Sto Active Infowar (turns) . | . . . . . Robot Analysis Total . | . . . . . Derelict Logs Recovered 1 | . . 1 . . Drone Launches . | . . . . . Drone Recoveries . | . . . . . Exploration | -11 -10 -10 -9 -9 ------------- Run | Yrd Mat Min Mat Sto Turns Passed 1557 | 65 472 266 527 227 Spaces Moved 818 | 69 246 167 269 67 Core 172 | 49 . . 56 67 Treads 646 | 20 246 167 213 . Legs . | . . . . . Wheels . | . . . . . Hover . | . . . . . Flight . | . . . . . Fastest Speed 50 | 50 160 160 100 100 Average Speed 156 | 81 160 160 155 208 Slowest Speed 300 | 160 160 160 160 300 Overloaded Moves . | . . . . . Propulsion Burnouts . | . . . . . Robots Hopped . | . . . . . Potential Cave-ins . | . . . . . Cave-ins Triggered . | . . . . . Exploration Rate (%) 22 | 4 39 29 27 11 Regions Visited 4 Branch Regions 2 Pre-discovered Areas . | . . . . . Known Exits Taken . | . . . . . Unknown Exits Taken 4 | 1 1 1 1 . Scrap Searched . | . . . . . Spaces Dug 3 | . 3 . . . Terrain Destroyed 272 | . 143 . 121 8 Melee . | . . . . . Projectile 2 | . . . 2 . AOE 270 | . 143 . 119 8 Terrain Rammed . | . . . . . Walls Destroyed . | . . . . . Machines Disabled . | . . . . . Actions | -11 -10 -10 -9 -9 --------- Run | Yrd Mat Min Mat Sto Total 965 | 78 282 166 318 121 Wait 8 | . 4 . . 4 Move 814 | 68 245 166 268 67 Hop . | . . . . . Pick Up 24 | 5 5 . 6 8 Fast Attach 1 | . . . 1 . Attach 22 | 5 1 . 5 11 Detach 2 | . . . . 2 Swap 5 | . 3 . 1 1 Drop 6 | . 1 . 2 3 Fire 82 | . 23 . 34 25 Melee . | . . . . . Ram . | . . . . . Kick . | . . . . . Crush 1 | . . . 1 . Escape Stasis . | . . . . . Rewire . | . . . . . Trap . | . . . . . Miscellaneous . | . . . . . Route ------- -11/Scrapyard -10/Materials (discovered 2 exits: *Mat / [*Min]) -10/Mines -9/Materials (discovered 2 exits: [*Mat] / [*Sto]) -9/Storage History --------- Turn | Location | Event 4 | -11/Scrapyard | Discovered new exit (range 15) 66 | -11/Scrapyard | Entered Materials 258 | -10/Materials | Discovered new exit (range 8) 301 | -10/Materials | Build established: Mutant 392 | -10/Materials | Discovered new exit (range 8) 538 | -10/Materials | Entered Mines 742 | -10/Mines | Found a hidden stash of uninstalled traps 758 | -10/Mines | Learned Materials stockpile data 790 | -10/Mines | Discovered new exit (range 7) 804 | -10/Mines | Entered Materials 804 | -9/Materials | Evolved 2 slots: Utility x1, Weapon x1 1032 | -9/Materials | Lost 3 parts (3w) 1131 | -9/Materials | Discovered new exit (range 5) 1233 | -9/Materials | Discovered new exit (range 7) 1259 | -9/Materials | Lost 4 parts (1p1n2w) 1331 | -9/Materials | Entered Storage 1502 | -9/Storage | Core integrity fell below 50% 1529 | -9/Storage | Core integrity fell below 20% 1541 | -9/Storage | Lost 3 parts (3w) 1558 | -9/Storage | Destroyed by L-31 Rogue with Katana Last Messages --------------- Relay Coupler [Demolisher] fries itself. Y-45 Defender destroyed. Overheating: System interference. Sml. Laser temporarily disabled. Adv. Beam Cannon temporarily disabled. R-06 Scavenger collects Imp. Ion Engine. Acquired Relay Coupler [Sentry]. Relay Coupler [Sentry] fries itself. Acquired 2 matter. C-30 ARC bursts open, deploying its payload. G-47 Trooper unfolds itself. G-34 Mercenary unfolds itself. I-25 Savior unfolds itself. Hvy. Ion Engine destroyed. Critical hit (Burn: +37). C-30 ARC bursts open, deploying its payload. G-47 Trooper unfolds itself. L-31 Rogue unfolds itself. Grenade Launcher severed. Adv. Beam Cannon destroyed. Map ----- +----------------------------------------------------+ | ???????????????????????????????????? | | ???????????????????????????????????? | | ???????????????????????????????????? | | ???????????????????????????????????? | | ???????????????????????????????????? | | ???????????????????????????????????? | | ???????????????????????????????????? | | ???????????????????????????????????? | | ???????????????????????????????????? | | ???????????????????????????????????? | | ???????????????????????????????????? | | ???????????????????????????????????? | | ???????????????????????????????????? | | ???????????????????????????????????? | | ???????????????????????????????????? | | ???????????????????????????????????? | | ???????????????????????????????????? | | ???????????????????????????????????? | | ???????????????????????????????????? | | ???????????????????????????????????? | | ??????###########??????????????????? | | ??????# #??????????????????? | | ??????# "" !!!#??????????????????? | | ?????## "G [ [!#??????????????????? | | ?????#% "" [ [i####???????????????? | | ?????## % @l g ##??????????????? | | ??????# g gl%ggm #?????????? | | ??????# = #####???????????? | | ??????# r ####???????????????? | | ??????#### +## #########???????????? | | ?????##### + #???????????? | | # + # #???????????? | | ?????""" # # """" #???????????? | | ?????" " # # """" #???????????? | | ?????"= + + """" #???????????? | | ?????" " # # """" #???????????? | | ?????""" # # #???????????? | | ??????? # # #???????????? | | ?????? # ####??#####???????????? | | ########## #?????????????????????? | | # # #?????????????????????? | | # ^ # #?????????????????????? | | # # #?????????????????????? | | # [# #?????????????????????? | | # ] + #?????????????????????? | | # ]] # #?????????????????????? | | # # #?????????????????????? | | # # #?????????????????????? | | # # #?????????????????????? | | ########## #?????????????????????? | +----------------------------------------------------+ Best States ------------- Heat Dissipation 28 Energy Generation 14 Energy Capacity 280 Matter Stores 300 Matter Capacity 300 Sight Range 16 Terrain Scan Density 10 Evasion (%) 50 Recoil Reduction 2 Item Schematics ----------------- None Robot Schematics ------------------ None Fabricated ------------ Nothing Repaired ---------- Nothing Alien Tech Used ----------------- None Achievements -------------- None Challenges ------------ None Game ------ Seed GrenadeEfficiencyFlail Manual? 0 Play Time 00:13:25 Cumulative 61.1 hours Start 2025.07.18 @ 17:35:05 End 2025.07.19 @ 14:17:20 Sessions 2 Manual Loads 0 Difficulty Rogue Special Mode None Game No. 261 Rogue 261 Adventurer 0 Explorer 0 Win Type - Total 0 Types 0/0/0/0/0/0/0/0/0/0 Lore% 39 Gallery% 30 Achievement% 25 Wizard Run 0 Options --------- Layout 2 ASCII 0 Keyboard 0 Movement Mouse Keybinds 0 Fullscreen 1 Font 24/Terminus Map View 50x44 Zoom Use 0% Tactical HUD 0 Map Filters NONE Filters NONE Steam 1 RUN: 26d8f356-2a3a-4205-8a01-1ec54190a188